bitfinex/quotes_BTCUSD_20241111
["timestamp","ask_amount","ask_price","bid_price","bid_amount"]
[1731295342662,0.001686,81133.0,81120.0,0.002]
[1731295342883,0.001686,81133.0,81127.0,0.09861]
[1731295343083,0.001686,81133.0,81121.0,0.197235]
[1731295343296,0.001686,81133.0,81126.0,0.098611]
[1731295343625,0.098604,81132.0,81122.0,0.098616]
[1731295343832,0.098606,81131.0,81121.0,0.098617]
[1731295343953,0.001686,81133.0,81122.0,0.197233]
[1731295344174,0.001686,81133.0,81124.0,0.098614]
[1731295344376,0.100289,81133.0,81124.0,0.098614]
[1731295344609,0.100289,81133.0,81126.0,0.098611]
[1731295344610,0.00579716,81132.0,81126.0,0.098611]
[1731295344836,0.00579716,81132.0,81122.0,0.197233]
[1731295345039,0.10440216,81132.0,81123.0,0.098615]
[1731295345277,0.098606,81131.0,81123.0,0.098615]
[1731295345708,0.18421521,81129.0,81118.0,0.098621]
[1731295345938,0.18421521,81129.0,81109.0,0.197263]
[1731295345939,0.098619,81120.0,81110.0,0.0456]
[1731295346168,0.098618,81121.0,81113.0,0.098627]
[1731295346380,0.18421521,81125.0,81113.0,0.098627]
[1731295346594,0.18421521,81125.0,81110.0,0.0456]
[1731295346595,0.18421521,81125.0,81114.0,0.098626]
[1731295346832,0.18421521,81125.0,81117.0,0.098622]
[1731295347058,0.098616,81123.0,81115.0,0.098624]
[1731295347277,0.00579304,81122.0,81115.0,0.098624]
[1731295347540,0.00579304,81122.0,81112.0,0.002]
[1731295347737,0.00579304,81122.0,81115.0,0.19725]
[1731295347951,0.18421521,81125.0,81112.0,0.005]
[1731295348174,0.00576946,81121.0,81120.0,0.098619]
[1731295348449,0.18421521,81128.0,81127.0,0.09861]
[1731295348660,0.18998756,81128.0,81127.0,0.10061]
[1731295349101,0.00577235,81128.0,81127.0,0.10061]
[1731295349524,0.001686,81133.0,81127.0,0.09861]
[1731295349732,0.001686,81133.0,81128.0,0.100609]
[1731295349947,0.005774,81132.0,81128.0,0.100609]
[1731295350155,0.005774,81132.0,81128.0,0.098609]
[1731295350569,0.005774,81132.0,81125.0,0.197226]
[1731295350769,0.005774,81132.0,81127.0,0.197221]
[1731295350979,0.005774,81132.0,81129.0,0.098607]
[1731295351184,0.005774,81132.0,81126.0,0.197224]
[1731295351385,0.005774,81132.0,81130.0,0.098606]
[1731295351604,0.005774,81132.0,81131.0,0.098605]
[1731295352966,0.001686,81133.0,81131.0,0.098605]
[1731295352967,0.001686,81133.0,81131.0,0.100605]
[1731295353206,0.001686,81133.0,81132.0,0.10306889]
[1731295353437,0.001686,81133.0,81132.0,0.15566889]
[1731295353667,0.001686,81133.0,81132.0,0.153204]
[1731295354105,0.001686,81133.0,81124.0,0.002]
[1731295354324,0.001686,81133.0,81122.0,0.0471]
[1731295354548,0.098609,81128.0,81122.0,0.0451]
[1731295354806,0.18421521,81132.0,81127.0,0.098609]
[1731295355045,0.18421521,81132.0,81114.0,0.0451]
[1731295355289,0.001686,81133.0,81116.0,0.197248]
[1731295355510,0.001686,81133.0,81115.0,0.19925]
[1731295355735,0.001686,81133.0,81129.0,0.197216]
[1731295355956,0.00121373,81133.0,81115.0,0.002]
[1731295356195,0.18421521,81125.0,81114.0,0.0451]
[1731295356417,0.12594221,81132.0,81114.0,0.0451]
[1731295356418,0.023,81131.0,81114.0,0.0451]
[1731295356647,0.12594221,81130.0,81121.0,0.197235]
[1731295356875,0.12594221,81130.0,81126.0,0.098611]
[1731295357321,0.12594221,81130.0,81121.0,0.197235]
[1731295357322,0.12594221,81130.0,81127.0,0.09861]
[1731295357534,0.12594221,81130.0,81114.0,0.0451]
[1731295357535,0.14894221,81130.0,81129.0,0.098608]
[1731295357739,0.14894221,81130.0,81127.0,0.09861]
[1731295357971,0.14894221,81130.0,81122.0,0.197233]
[1731295358180,0.14894221,81130.0,81128.0,0.098608]
[1731295358387,0.14894221,81130.0,81125.0,0.098612]
[1731295358592,2.00121373,81133.0,81114.0,0.0451]
[1731295358795,2.12715594,81133.0,81132.0,0.098604]
[1731295359437,2.00121373,81133.0,81132.0,0.098604]
[1731295359882,2.12715594,81133.0,81113.0,0.0787]
[1731295360122,2.12715594,81133.0,81122.0,0.197232]
[1731295360123,0.098606,81131.0,81122.0,0.197232]
[1731295360326,0.098606,81131.0,81113.0,0.273954]
[1731295360327,0.18421521,81131.0,81113.0,0.0767]
[1731295360534,0.0791,81131.0,81129.0,0.098607]
[1731295360738,0.0791,81131.0,81108.0,0.002]
[1731295360739,0.14894221,81130.0,81108.0,0.002]
[1731295361025,0.09861,81128.0,81107.0,0.000843]
[1731295361210,0.22455221,81128.0,81110.0,0.295893]
[1731295361483,0.18421521,81123.0,81109.0,0.197265]
[1731295361898,0.18421521,81123.0,81107.0,0.000843]
[1731295362101,0.18421521,81123.0,81118.0,0.098621]
[1731295362303,0.18421521,81123.0,81107.0,0.000843]
[1731295362524,0.18421521,81123.0,81120.0,0.098618]
[1731295363291,0.12594221,81128.0,81117.0,0.197243]
[1731295363502,0.023,81130.0,81126.0,0.098612]
[1731295363503,0.12594221,81127.0,81126.0,0.098612]
[1731295363933,0.12594221,81127.0,81124.0,0.098614]
[1731295364132,0.12594221,81127.0,81122.0,0.098616]
[1731295365233,0.12594221,81127.0,81123.0,0.098615]
[1731295366335,0.12594221,81127.0,81105.0,0.13978458]
[1731295366527,0.12594221,81127.0,81123.0,0.098615]
[1731295366737,0.12594221,81127.0,81126.0,0.098612]
[1731295368483,0.18421521,81132.0,81116.0,0.0807]
[1731295368691,0.31015742,81132.0,81116.0,0.0807]
[1731295368896,2.00121373,81133.0,81132.0,0.098604]
[1731295370121,1.95621373,81133.0,81132.0,0.098604]
[1731295370802,1.95621373,81133.0,81132.0,0.179304]
[1731295371006,1.95621373,81133.0,81132.0,0.181304]
[1731295371468,1.95621373,81133.0,81132.0,0.229404]
[1731295372328,1.95621373,81133.0,81132.0,0.36918858]
[1731295372536,1.95621373,81133.0,81132.0,0.37418858]
[1731295372755,1.95789773,81133.0,81132.0,0.37418858]
[1731295373466,1.95789773,81133.0,81132.0,0.50013079]
[1731295375225,1.95789773,81133.0,81132.0,0.49813079]
[1731295375601,1.95789773,81133.0,81132.0,0.59813079]
[1731295376004,1.95789773,81133.0,81132.0,0.60013079]
[1731295377527,1.95789773,81133.0,81132.0,0.59813079]
[1731295377686,1.95789773,81133.0,81132.0,0.60013079]
[1731295377890,1.95789773,81133.0,81132.0,0.59813079]
[1731295378116,1.95789773,81133.0,81132.0,0.60013079]
[1731295386410,1.95789773,81133.0,81132.0,0.59813079]
[1731295386621,1.95789773,81133.0,81132.0,0.60013079]
[1731295388310,1.91289773,81133.0,81132.0,0.60013079]
[1731295391296,1.91289773,81133.0,81132.0,0.59813079]
[1731295391498,1.91289773,81133.0,81132.0,0.60013079]
[1731295393116,1.78964273,81133.0,81132.0,0.74491537]
[1731295393338,1.28566877,81133.0,81132.0,0.74491537]
[1731295393572,1.13978238,81133.0,81132.0,0.74491537]
[1731295393718,1.11513138,81133.0,81132.0,0.74491537]
[1731295393930,1.02268938,81133.0,81132.0,0.74491537]
[1731295394260,0.97338738,81133.0,81132.0,0.74491537]
[1731295394620,0.87478338,81133.0,81132.0,0.74491537]
[1731295394832,0.85013238,81133.0,81132.0,0.74491537]
[1731295395031,0.71151325,81133.0,81132.0,0.80702585]
[1731295395375,0.49310047,81133.0,81132.0,0.80702585]
[1731295395732,0.04207075,81133.0,81132.0,0.80702585]
[1731295395929,0.04207075,81133.0,81132.0,0.84375784]
[1731295396142,0.04207075,81133.0,81132.0,0.80702585]
[1731295396363,0.04207075,81133.0,81132.0,0.84374771]
[1731295396557,0.01741975,81133.0,81132.0,0.84374771]
[1731295396981,7.5e-07,81133.0,81132.0,0.84374771]
[1731295397377,0.11027796,81148.0,81147.0,0.110586]
[1731295397627,0.03633996,81148.0,81147.0,0.60221279]
[1731295397869,0.18421521,81157.0,81156.0,0.105575]
[1731295398085,0.18421521,81157.0,81156.0,0.37130179]
[1731295398463,0.0765,81177.0,81162.0,0.005]
[1731295398622,0.0765,81177.0,81170.0,0.098558]
[1731295399294,0.0765,81177.0,81171.0,0.098557]
[1731295401082,0.0765,81177.0,81164.0,0.197131]
[1731295401310,0.0788,81164.0,81140.0,0.18421521]
[1731295401536,0.13978458,81156.0,81146.0,0.197175]
[1731295401733,0.13978458,81150.0,81132.0,0.000842]
[1731295402183,0.18421521,81154.0,81132.0,0.000842]
[1731295402362,0.31015742,81154.0,81132.0,0.000842]
[1731295402591,0.40873542,81154.0,81132.0,0.000842]
[1731295402796,0.21948458,81142.0,81132.0,0.000842]
[1731295402996,0.21948458,81142.0,81140.0,0.098594]
[1731295402997,0.0797,81142.0,81140.0,0.098594]
[1731295403147,0.0797,81142.0,81141.0,0.098593]
[1731295403552,0.0797,81142.0,81134.0,0.197204]
[1731295403553,0.0797,81154.0,81153.0,0.098579]
[1731295403752,0.0797,81154.0,81152.0,0.098579]
[1731295403931,0.18421521,81153.0,81128.0,0.005]
[1731295404139,0.0797,81154.0,81132.0,0.12678421]
[1731295404333,0.18421521,81151.0,81150.0,0.098582]
[1731295404768,0.0797,81154.0,81148.0,0.197168]
[1731295404942,0.18421521,81150.0,81142.0,0.197183]
[1731295405147,0.12594221,81153.0,81149.0,0.098583]
[1731295405396,0.12594221,81153.0,81152.0,0.09858]
[1731295405600,0.12594221,81153.0,81132.0,0.000842]
[1731295405800,0.36430579,81153.0,81146.0,0.098587]
[1731295406132,0.18421521,81151.0,81147.0,0.098586]
[1731295406478,0.178286,81148.0,81147.0,0.000842]
[1731295406710,0.37302821,81148.0,81147.0,0.000842]
[1731295407133,0.37802821,81148.0,81147.0,0.000842]
[1731295408207,0.45124663,81148.0,81147.0,0.000842]
[1731295408434,0.37802821,81148.0,81147.0,0.000842]
[1731295410153,0.25644221,81148.0,81147.0,0.000842]
[1731295410396,0.25644221,81148.0,81147.0,0.099428]
[1731295410811,0.001684,81153.0,81147.0,0.000842]
[1731295411018,0.001684,81153.0,81152.0,0.09858]
[1731295412749,0.001684,81153.0,81147.0,0.000842]
[1731295413020,0.13978458,81151.0,81150.0,0.098582]
[1731295413635,0.13978458,81151.0,81147.0,0.000842]
[1731295413835,0.13978458,81151.0,81149.0,0.098582]
[1731295413966,0.13978458,81151.0,81147.0,0.000842]
[1731295414176,0.13978458,81151.0,81150.0,0.098582]
[1731295415371,0.13978458,81151.0,81147.0,0.000842]
[1731295415577,0.13978458,81151.0,81148.0,0.098585]
[1731295415786,0.13978458,81151.0,81147.0,0.000842]
[1731295416018,0.13978458,81151.0,81148.0,0.098585]
[1731295416408,0.13978458,81151.0,81150.0,0.098582]
[1731295416624,0.13978458,81151.0,81149.0,0.098583]
[1731295417063,0.13978458,81151.0,81147.0,0.000842]
[1731295417214,0.13978458,81151.0,81148.0,0.098584]
[1731295417415,0.13978458,81151.0,81149.0,0.098583]
[1731295417822,0.13978458,81151.0,81147.0,0.000842]
[1731295418043,0.13978458,81151.0,81149.0,0.098583]
[1731295418256,0.13978458,81151.0,81150.0,0.098582]
[1731295418627,0.12594221,81152.0,81151.0,0.098581]
[1731295419048,0.001684,81153.0,81152.0,0.09858]
[1731295429767,0.10146858,81159.0,81157.0,0.098573]
[1731295429973,0.12594221,81158.0,81157.0,0.098573]
[1731295430592,0.12594221,81158.0,81149.0,0.197168]
[1731295430814,0.12594221,81158.0,81148.0,0.19717]
[1731295431012,0.12594221,81158.0,81157.0,0.098574]
[1731295434752,0.12594221,81158.0,81147.0,0.000842]
[1731295434960,0.12594221,81158.0,81153.0,0.098578]
[1731295435160,0.12594221,81158.0,81147.0,0.000842]
[1731295435369,0.12594221,81158.0,81149.0,0.197168]
[1731295436306,0.12594221,81158.0,81151.0,0.197163]
[1731295436497,0.12594221,81158.0,81156.0,0.098574]
[1731295436705,0.12594221,81158.0,81152.0,0.19716]
[1731295436841,0.12594221,81158.0,81157.0,0.098574]
[1731295437478,0.12594221,81158.0,81155.0,0.098575]
[1731295437889,0.12594221,81158.0,81156.0,0.098575]
[1731295438293,0.12594221,81158.0,81152.0,0.19716]
[1731295438507,0.12594221,81158.0,81155.0,0.098576]
[1731295439190,0.12594221,81158.0,81153.0,0.197158]
[1731295439405,0.12594221,81158.0,81155.0,0.098576]
[1731295439826,0.12594221,81158.0,81150.0,0.197164]
[1731295439994,0.12594221,81158.0,81154.0,0.098577]
[1731295440195,0.12594221,81158.0,81155.0,0.098576]
[1731295441374,0.12594221,81158.0,81150.0,0.197164]
[1731295441584,0.12594221,81158.0,81155.0,0.098576]
[1731295442511,0.098575,81156.0,81150.0,0.197164]
[1731295442721,0.13978458,81153.0,81147.0,0.000842]
[1731295442928,0.098585,81148.0,81147.0,0.000842]
[1731295443135,0.22452721,81148.0,81147.0,0.000842]
[1731295445272,0.23494204,81148.0,81147.0,0.000842]
[1731295446491,0.22452721,81148.0,81147.0,0.000842]
[1731295447092,0.12594221,81148.0,81147.0,0.000842]
[1731295447292,0.22452721,81148.0,81147.0,0.000842]
[1731295451656,0.24752721,81148.0,81147.0,0.000842]
[1731295452110,0.023,81148.0,81147.0,0.099428]
[1731295452361,0.001684,81158.0,81147.0,0.000842]
[1731295452362,0.1,81155.0,81147.0,0.000842]
[1731295452591,0.123,81152.0,81147.0,0.099428]
[1731295452806,0.023,81150.0,81147.0,0.099428]
[1731295453021,0.14894221,81150.0,81148.0,0.098584]
[1731295453241,0.14894221,81150.0,81147.0,0.000842]
[1731295453453,0.121585,81148.0,81147.0,0.000842]
[1731295453623,0.023,81148.0,81147.0,0.000842]
[1731295454046,0.023,81149.0,81147.0,0.000842]
[1731295454948,0.023,81149.0,81147.0,0.099428]
[1731295455405,0.023,81149.0,81147.0,0.000842]
[1731295457108,0.023,81149.0,81147.0,0.099428]
[1731295457509,0.023,81149.0,81148.0,0.098585]
[1731295458305,0.023,81149.0,81147.0,0.000842]
[1731295458510,0.023,81149.0,81148.0,0.098585]
[1731295459769,0.001684,81158.0,81157.0,0.098574]
[1731295460916,0.024684,81158.0,81157.0,0.098574]
[1731295461564,0.08430741,81168.0,81154.0,0.28150301]
[1731295461565,0.0549879,81170.0,81169.0,0.098559]
[1731295461772,0.100234,81179.0,81159.0,0.005]
[1731295461773,0.18421521,81167.0,81166.0,0.098563]
[1731295461983,0.001686,81179.0,81154.0,0.279956]
[1731295461984,0.0549879,81175.0,81171.0,0.098557]
[1731295462195,0.001686,81179.0,81171.0,0.180557]
[1731295462414,0.001686,81179.0,81171.0,0.185557]
[1731295467297,0.001686,81179.0,81171.0,0.18802062]
[1731295467524,0.001686,81179.0,81171.0,0.23652062]
[1731295467885,0.001686,81179.0,81171.0,0.234057]
[1731295476155,0.13978458,81178.0,81171.0,0.098557]
[1731295477474,0.001686,81179.0,81171.0,0.098557]
[1731295481944,0.100234,81179.0,81171.0,0.098557]
[1731295482378,0.001686,81179.0,81164.0,0.000842]
[1731295482598,0.098564,81165.0,81164.0,0.000842]
[1731295482816,0.32680621,81165.0,81164.0,0.000842]
[1731295486627,0.43380621,81165.0,81164.0,0.000842]
[1731295487662,0.43180621,81165.0,81164.0,0.000842]
[1731295488098,0.44580621,81165.0,81164.0,0.001842]
[1731295488437,0.45980621,81165.0,81164.0,0.002842]
[1731295488880,0.58574842,81165.0,81164.0,0.002842]
[1731295489752,0.45980621,81165.0,81164.0,0.002842]
[1731295490480,0.51090621,81165.0,81164.0,0.002842]
[1731295490690,0.50890621,81165.0,81164.0,0.002842]
[1731295491509,0.49490621,81165.0,81164.0,0.001842]
[1731295491733,0.39634221,81165.0,81164.0,0.001842]
[1731295491942,0.50890621,81165.0,81164.0,0.002842]
[1731295492996,0.57899523,81165.0,81164.0,0.002842]
[1731295493199,0.57899523,81165.0,81147.0,0.000842]
[1731295493200,0.34446958,81148.0,81147.0,0.000842]
[1731295493403,0.47041179,81148.0,81147.0,0.000842]
[1731295494612,0.47541179,81148.0,81147.0,0.000842]
[1731295495174,0.701354,81148.0,81147.0,0.000842]
[1731295495812,0.57541179,81148.0,81147.0,0.000842]
[1731295496364,0.72786527,81148.0,81147.0,0.000842]
[1731295496624,0.26138758,81133.0,81132.0,0.000842]
[1731295496848,0.56582979,81133.0,81132.0,0.000842]
[1731295500229,0.14894221,81133.0,81132.0,0.000842]
[1731295500682,0.24754521,81133.0,81132.0,0.000842]
[1731295500896,0.32944521,81133.0,81132.0,0.000842]
[1731295502156,0.51630739,81133.0,81132.0,0.000842]
[1731295502678,0.42944521,81133.0,81132.0,0.000842]
[1731295503284,0.43144521,81133.0,81132.0,0.000842]
[1731295503534,0.43644521,81133.0,81132.0,0.000842]
[1731295503734,0.028,81122.0,81121.0,0.00139446]
[1731295503904,0.25255821,81122.0,81121.0,0.00139446]
[1731295504149,0.35255821,81122.0,81121.0,0.00139446]
[1731295504445,0.35455821,81122.0,81121.0,0.00139446]
[1731295504749,0.35255821,81122.0,81121.0,0.00139446]
[1731295504949,0.37372872,81122.0,81121.0,0.00139446]
[1731295505591,0.35255821,81122.0,81121.0,0.00139446]
[1731295505784,0.34755821,81122.0,81121.0,0.00139446]
[1731295506120,0.35255821,81122.0,81121.0,0.00139446]
[1731295508537,0.36334139,81122.0,81121.0,0.00139446]
[1731295509292,0.205733,81108.0,81107.0,0.000843]
[1731295509509,0.47345979,81108.0,81107.0,0.000843]
[1731295509791,0.47145979,81108.0,81107.0,0.000843]
[1731295512392,0.48236414,81108.0,81107.0,0.000843]
[1731295512621,0.58236414,81108.0,81107.0,0.000843]
[1731295512844,0.67300459,81108.0,81107.0,0.000843]
[1731295515050,0.005,81101.0,81096.0,0.001394]
[1731295515246,0.49236879,81101.0,81096.0,0.001394]
[1731295515971,0.35258421,81101.0,81096.0,0.001394]
[1731295516178,0.49236879,81101.0,81096.0,0.001394]
[1731295517261,0.60098867,81101.0,81096.0,0.001394]
[1731295518033,0.49236879,81101.0,81096.0,0.001394]
[1731295520245,0.63215337,81101.0,81096.0,0.001394]
[1731295520468,0.49436879,81101.0,81096.0,0.001394]
[1731295520631,0.103647,81097.0,81096.0,0.001394]
[1731295520836,0.35258921,81097.0,81096.0,0.001394]
[1731295521555,0.43048921,81097.0,81096.0,0.001394]
[1731295521983,0.20365,81094.0,81093.0,0.001394]
[1731295522316,0.49437679,81094.0,81093.0,0.001394]
[1731295522643,0.005,81090.0,81089.0,0.001394]
[1731295522843,0.32959721,81090.0,81089.0,0.001394]
[1731295523064,0.35259721,81090.0,81089.0,0.001394]
[1731295524351,0.35259721,81090.0,81081.0,0.001394]
[1731295524352,0.121664,81083.0,81081.0,0.001394]
[1731295524485,0.38739079,81083.0,81081.0,0.001394]
[1731295528329,0.39833708,81083.0,81081.0,0.001394]
[1731295532332,0.409787,81083.0,81081.0,0.001394]
[1731295533482,0.39833708,81083.0,81081.0,0.001394]
[1731295533682,0.50800395,81083.0,81081.0,0.001394]
[1731295534087,0.61300395,81083.0,81081.0,0.001394]
[1731295534283,0.53309748,81083.0,81081.0,0.001394]
[1731295534505,0.51478412,81083.0,81081.0,0.001394]
[1731295534715,0.53767346,81083.0,81081.0,0.001394]
[1731295536051,0.53267346,81083.0,81081.0,0.001394]
[1731295536200,0.3928854,81083.0,81081.0,0.001394]
[1731295536585,0.3585525,81083.0,81081.0,0.001394]
[1731295537117,0.49833708,81083.0,81081.0,0.001394]
[1731295538005,0.50002108,81083.0,81081.0,0.001394]
[1731295541041,0.51147421,81083.0,81081.0,0.001394]
[1731295541378,0.221665,81082.0,81081.0,0.00065066]
[1731295541683,0.36406034,81082.0,81081.0,0.00065066]
[1731295542243,0.38239418,81082.0,81081.0,0.00065066]
[1731295542900,0.41884581,81082.0,81081.0,0.00065066]
[1731295543273,0.41884581,81082.0,81071.0,0.001394]
[1731295543274,0.226677,81072.0,81071.0,0.001394]
[1731295543582,0.95728837,81072.0,81071.0,0.001394]
[1731295543781,0.52219076,81072.0,81071.0,0.001394]
[1731295543985,0.50385692,81072.0,81071.0,0.001394]
[1731295546711,0.51456559,81072.0,81071.0,0.001394]
[1731295546926,0.36978101,81072.0,81071.0,0.001394]
[1731295547255,0.35832788,81072.0,81071.0,0.001394]
[1731295547461,0.33532788,81072.0,81071.0,0.001394]
[1731295547776,0.12594221,81072.0,81071.0,0.100072]
[1731295547979,0.098672,81077.0,81072.0,0.0488]
[1731295548177,0.12594221,81076.0,81074.0,0.098674]
[1731295548381,0.12594221,81076.0,81073.0,0.0827]
[1731295548583,0.12594221,81076.0,81073.0,0.181375]
[1731295549439,0.023,81075.0,81073.0,0.181375]
[1731295549640,0.023,81074.0,81073.0,0.181375]
[1731295549863,0.001684,81083.0,81081.0,0.098666]
[1731295550144,0.001684,81083.0,81082.0,0.098665]
[1731295550145,0.12762621,81083.0,81082.0,0.098665]
[1731295550347,0.001684,81083.0,81082.0,0.098665]
[1731295550920,0.001684,81083.0,81082.0,0.103665]
[1731295551825,0.001684,81083.0,81082.0,0.32814958]
[1731295552016,0.001684,81083.0,81082.0,0.37694958]
[1731295552248,0.18421521,81099.0,81098.0,0.230346]
[1731295552574,0.18994285,81099.0,81098.0,0.225346]
[1731295552775,0.18421521,81099.0,81098.0,0.225346]
[1731295553002,0.00560344,81099.0,81098.0,0.1267]
[1731295553613,0.00560344,81099.0,81091.0,0.274207]
[1731295553816,0.00560344,81099.0,81093.0,0.098652]
[1731295553817,0.023,81098.0,81093.0,0.098652]
[1731295553971,0.023,81098.0,81095.0,0.098648]
[1731295554196,0.023,81098.0,81093.0,0.197304]
[1731295554393,0.023,81098.0,81097.0,0.098647]
[1731295556226,0.023,81098.0,81095.0,0.098649]
[1731295556468,0.023,81098.0,81097.0,0.098647]
[1731295556663,0.023,81098.0,81093.0,0.005]
[1731295556980,0.121648,81097.0,81091.0,0.0769]
[1731295557193,0.121648,81097.0,81091.0,0.175553]
[1731295557398,0.023,81097.0,81091.0,0.0769]
[1731295557800,0.12594221,81098.0,81091.0,0.0769]
[1731295557801,0.023,81095.0,81091.0,0.0769]
[1731295558168,0.023,81095.0,81087.0,0.197318]
[1731295558363,0.023,81095.0,81090.0,0.098655]
[1731295558577,0.023,81095.0,81091.0,0.005]
[1731295558784,0.023,81097.0,81091.0,0.005]
[1731295559093,0.023,81097.0,81092.0,0.098653]
[1731295559298,0.023,81097.0,81091.0,0.005]
[1731295559515,0.023,81097.0,81093.0,0.005]
[1731295559697,0.023,81097.0,81096.0,0.098648]
[1731295560177,0.02857876,81097.0,81096.0,0.098648]
[1731295560409,0.02857876,81097.0,81096.0,0.176148]
[1731295561141,0.098644,81100.0,81096.0,0.0775]
[1731295561374,0.023,81097.0,81096.0,0.0775]
[1731295561833,0.02859237,81097.0,81096.0,0.176148]
[1731295562119,0.023,81103.0,81096.0,0.0775]
[1731295562265,0.023,81103.0,81096.0,0.274796]
[1731295562466,0.023,81103.0,81102.0,0.098641]
[1731295563068,0.023,81103.0,81102.0,0.146141]
[1731295565673,0.001684,81104.0,81103.0,0.10364]
[1731295565877,0.001684,81104.0,81103.0,0.09864]
[1731295566713,0.001684,81104.0,81103.0,0.10364]
[1731295567260,0.001684,81104.0,81103.0,0.09864]
[1731295567871,0.001684,81104.0,81103.0,0.10364]
[1731295572427,0.024684,81104.0,81103.0,0.10364]
[1731295572653,0.001684,81104.0,81103.0,0.10364]
[1731295572887,0.001684,81104.0,81103.0,0.18604]
[1731295573782,0.001684,81104.0,81103.0,0.23514]
[1731295573973,0.001684,81104.0,81103.0,0.2482608]
[1731295574176,0.001684,81104.0,81103.0,0.37920301]
[1731295574497,0.001684,81104.0,81103.0,0.37673743]
[1731295575672,0.001684,81104.0,81103.0,0.37873743]
[1731295576163,0.001684,81104.0,81103.0,0.37673743]
[1731295576534,0.001684,81104.0,81103.0,0.48173743]
[1731295576954,0.18421521,81120.0,81119.0,0.22612]
[1731295577628,0.18421521,81129.0,81128.0,0.098609]
[1731295577847,0.18421521,81129.0,81119.0,0.1275]
[1731295577848,0.18421521,81150.0,81139.0,0.098596]
[1731295578067,0.18421521,81150.0,81131.0,0.197211]
[1731295578068,0.197169,81149.0,81136.0,0.197199]
[1731295578239,0.13978458,81148.0,81131.0,0.197211]
[1731295578456,0.13978458,81148.0,81132.0,0.197209]
[1731295578612,0.09859,81144.0,81138.0,0.098597]
[1731295579044,0.12594221,81143.0,81138.0,0.098597]
[1731295579271,0.023,81140.0,81128.0,0.005]
[1731295579469,0.16278458,81133.0,81128.0,0.103608]
[1731295579680,0.023,81133.0,81130.0,0.005]
[1731295579884,0.023,81134.0,81130.0,0.005]
[1731295580100,0.023,81134.0,81128.0,0.103609]
[1731295580447,0.023,81132.0,81129.0,0.098608]
[1731295580650,0.023,81132.0,81130.0,0.005]
[1731295580859,0.12594221,81137.0,81131.0,0.098605]
[1731295580860,0.1216,81136.0,81131.0,0.098605]
[1731295581086,0.1216,81136.0,81121.0,0.197235]
[1731295581087,0.12594221,81135.0,81121.0,0.197235]
[1731295581301,0.12594221,81135.0,81119.0,0.0467]
[1731295581302,0.023,81134.0,81119.0,0.0467]
[1731295581518,0.023,81134.0,81120.0,0.197238]
[1731295581928,0.121602,81134.0,81127.0,0.098609]
[1731295582130,0.121602,81134.0,81128.0,0.098608]
[1731295582579,0.121602,81134.0,81129.0,0.098608]
[1731295582787,0.023,81131.0,81127.0,0.09861]
[1731295583011,0.023,81131.0,81125.0,0.197226]
[1731295583227,0.121603,81134.0,81127.0,0.09861]
[1731295583433,0.121603,81134.0,81132.0,0.098604]
[1731295583434,0.023,81134.0,81132.0,0.098604]
[1731295583659,0.023,81134.0,81119.0,0.0467]
[1731295583890,0.023,81134.0,81127.0,0.09861]
[1731295584116,0.023,81134.0,81121.0,0.197236]
[1731295584356,0.023,81132.0,81121.0,0.197236]
[1731295584547,0.023,81130.0,81126.0,0.098611]
[1731295584776,0.023,81134.0,81129.0,0.098608]
[1731295585218,0.023,81134.0,81127.0,0.09861]
[1731295585431,0.098607,81130.0,81121.0,0.197236]
[1731295585696,0.098607,81130.0,81119.0,0.0467]
[1731295585697,0.121609,81129.0,81124.0,0.098614]
[1731295585897,0.023,81132.0,81122.0,0.197233]
[1731295586114,0.023,81130.0,81123.0,0.197231]
[1731295586322,0.121607,81130.0,81123.0,0.197231]
[1731295586528,0.023,81132.0,81120.0,0.197238]
[1731295586741,0.023,81127.0,81126.0,0.098612]
[1731295586950,0.023,81133.0,81119.0,0.0467]
[1731295587158,0.023,81133.0,81128.0,0.098609]
[1731295587364,0.12161,81128.0,81120.0,0.197238]
[1731295587558,0.023,81128.0,81126.0,0.098611]
[1731295587723,0.023,81130.0,81126.0,0.098611]
[1731295587924,0.098606,81131.0,81125.0,0.098612]
[1731295588345,0.023,81130.0,81121.0,0.197236]
[1731295588544,0.023,81128.0,81123.0,0.098615]
[1731295588980,0.023,81129.0,81123.0,0.098615]
[1731295589178,0.023,81129.0,81121.0,0.197236]
[1731295589398,0.023,81133.0,81128.0,0.098609]
[1731295589601,0.023,81133.0,81124.0,0.098614]
[1731295589747,0.023,81133.0,81128.0,0.098608]
[1731295590654,0.121603,81133.0,81128.0,0.098608]
[1731295592797,0.197213,81131.0,81120.0,0.197237]
[1731295593029,0.023,81133.0,81120.0,0.197237]
[1731295593247,0.023,81130.0,81119.0,0.0467]
[1731295593446,0.023,81132.0,81128.0,0.098608]
[1731295594582,0.023,81129.0,81124.0,0.098613]
[1731295594768,0.121608,81129.0,81121.0,0.197236]
[1731295595055,0.121608,81129.0,81123.0,0.098615]
[1731295595347,0.023,81118.0,81107.0,0.098634]
[1731295595468,0.295875,81115.0,81106.0,0.098635]
[1731295595680,0.023,81112.0,81105.0,0.197275]
[1731295595880,0.023,81112.0,81107.0,0.098634]
[1731295596246,0.220259,81112.0,81102.0,0.197282]
[1731295596399,0.098638,81105.0,81096.0,0.0768]
[1731295596607,0.023,81104.0,81094.0,0.0493]
[1731295596958,0.098646,81098.0,81091.0,0.098654]
[1731295597194,0.19728,81103.0,81085.0,0.197323]
[1731295597195,0.023,81096.0,81085.0,0.197323]
[1731295597371,0.023,81096.0,81091.0,0.098654]
[1731295597597,0.098646,81098.0,81084.0,0.0493]
[1731295597598,0.023,81097.0,81089.0,0.098656]
[1731295597722,0.098644,81100.0,81087.0,0.197318]
[1731295597927,0.023,81099.0,81093.0,0.098652]
[1731295598127,0.023,81101.0,81093.0,0.098652]